fUST/lending_fUST_20250516
["ID","MTS","AMOUNT","RATE_DAILY","PERIOD"]
[361259128,1747402182912,-228.78780633,0.00010512,2]
[361259129,1747402182934,-98.75794557,0.00010618,2]
[361259131,1747402188635,-99.2416357,0.00010618,2]
[361259266,1747402237986,-961.30081818,0.00010512,2]
[361259340,1747402238817,-455.46555164,0.00010512,2]
[361259422,1747402240334,-207.04721774,0.00010512,2]
[361259423,1747402240759,-170.07335641,0.00010512,2]
[361259671,1747402243603,-981.323186,0.00010512,2]
[361259726,1747402244233,-290.70444987,0.00010512,2]
[361259923,1747402246202,-1934.08542016,0.00010512,2]
[361259925,1747402246211,-300.0,0.00012834,2]
[361259927,1747402246222,-9290.1328025,0.00012835,2]
[361259984,1747402246778,-1100.00844774,0.00012835,2]
[361260440,1747402349474,-5000.0,0.00012707,2]
[361260441,1747402349500,-3686.85874976,0.00012835,2]
[361260442,1747402349522,-300.0,0.00012905,2]
[361260443,1747402349544,-1430.14125024,0.00012906,2]
[361260444,1747402422781,-311.7804932,0.00012726,2]
[361260445,1747402422805,-4868.2195068,0.00012777,2]
[361260446,1747402562099,-4977.0,0.00012777,2]
[361260448,1747402633935,-6266.0,0.00012623,2]
[361260450,1747402772625,-5000.0,0.00012497,2]
[361260451,1747402772646,-3734.0,0.00012623,2]
[361260452,1747402772666,-59.21896726,0.00012906,2]
[361260453,1747402772686,-250.0,0.00013544,2]
[361260454,1747402772707,-300.0,0.00013598,2]
[361260455,1747402772726,-300.0,0.00013599,2]
[361260456,1747402772745,-300.0,0.00013599,2]
[361260457,1747402772766,-1200.0,0.00013599,2]
[361260458,1747402772787,-300.0,0.00013599,2]
[361260459,1747402772807,-2658.78103274,0.000136,2]
[361260461,1747402930513,-300.0,0.0001267,2]
[361260462,1747402930535,-17332.0,0.00012671,2]
[361260505,1747403432206,-5000.0,0.00012289,2]
[361260507,1747403432217,-278.0766187,0.00012413,2]
[361260509,1747403432227,-1303.8846009,0.00012645,2]
[361260511,1747403432236,-300.0,0.0001267,2]
[361260513,1747403432247,-7568.0,0.00012671,2]
[361260515,1747403432257,-151.79590024,0.00013589,2]
[361260516,1747403432267,-37667.33396166,0.000136,2]
[361260518,1747403432277,-500.0,0.00013689,2]
[361260520,1747403432287,-500.0,0.00013689,2]
[361260522,1747403432297,-500.0,0.00013689,2]
[361260524,1747403432307,-158.59444123,0.00013689,2]
[361260526,1747403432316,-500.0,0.00013689,2]
[361260527,1747403432325,-500.0,0.00013689,2]
[361260528,1747403432334,-500.0,0.00013689,2]
[361260529,1747403432343,-500.0,0.00013689,2]
[361260530,1747403432353,-409.11045617,0.00013689,2]
[361260531,1747403432362,-500.0,0.00013689,2]
[361260532,1747403432371,-500.0,0.00013689,2]
[361260533,1747403432381,-500.0,0.00013689,2]
[361260534,1747403432390,-500.0,0.00013689,2]
[361260535,1747403432399,-500.0,0.00013689,2]
[361260536,1747403432408,-500.0,0.00013689,2]
[361260537,1747403432419,-500.0,0.00013689,2]
[361260538,1747403432428,-392.86328296,0.00013689,2]
[361260539,1747403432438,-500.0,0.00013689,2]
[361260540,1747403432448,-500.0,0.00013689,2]
[361260541,1747403432457,-500.0,0.00013689,2]
[361260542,1747403432466,-500.0,0.00013689,2]
[361260543,1747403432475,-500.0,0.00013689,2]
[361260544,1747403432485,-500.0,0.00013689,2]
[361260545,1747403432494,-500.0,0.00013689,2]
[361260546,1747403432503,-500.0,0.00013689,2]
[361260547,1747403432513,-500.0,0.00013689,2]
[361260548,1747403432522,-500.0,0.00013689,2]
[361260549,1747403432533,-500.0,0.00013689,2]
[361260550,1747403432543,-500.0,0.00013689,2]
[361260551,1747403432552,-417.8147365,0.00013689,2]
[361260552,1747403432561,-500.0,0.00013689,2]
[361260553,1747403432571,-500.0,0.00013689,2]
[361260554,1747403432580,-500.0,0.00013689,2]
[361260555,1747403432590,-500.0,0.00013689,2]
[361260556,1747403432598,-185.55119369,0.00013689,2]
[361260557,1747403432607,-500.0,0.00013689,2]
[361260558,1747403432616,-500.0,0.00013689,2]
[361260559,1747403432625,-233.94847602,0.00013689,2]
[361260560,1747403432637,-266.05152398,0.00013689,2]
[361260561,1747403432647,-500.0,0.00013689,2]
[361260562,1747403432656,-500.0,0.00013689,2]
[361260563,1747403432668,-500.0,0.00013689,2]
[361260564,1747403432677,-323.03681146,0.00013689,2]
[361260565,1747403432686,-500.0,0.00013689,2]
[361260566,1747403432695,-162.34528584,0.00013689,2]
[361260567,1747403432704,-311.88451818,0.00013689,2]
[361260568,1747403432713,-28212.39062195,0.0001369,2]
[361260569,1747403432723,-450.0,0.00013698,2]
[361260570,1747403432733,-450.0,0.00013698,2]
[361260571,1747403432743,-450.0,0.00013698,2]
[361260572,1747403432752,-450.0,0.00013698,2]
[361260573,1747403432762,-450.0,0.00013698,2]
[361260574,1747403432772,-450.0,0.00013698,2]
[361260575,1747403432782,-450.0,0.00013698,2]
[361260576,1747403432791,-450.0,0.00013698,2]
[361260577,1747403432801,-675.61,0.00013698,2]
[361260578,1747403432810,-1041.68,0.00013698,2]
[361260579,1747403432820,-201.23596615,0.00013698,2]
[361260580,1747403432830,-450.0,0.00013698,2]
[361260581,1747403432843,-985.78,0.00013698,2]
[361260582,1747403432852,-465.27,0.00013698,2]
[361260583,1747403432862,-345.53640455,0.00013698,2]
[361260584,1747403432872,-450.0,0.00013698,2]
[361260585,1747403432883,-450.0,0.00013698,2]
[361260586,1747403432893,-450.0,0.00013698,2]
[361260587,1747403432902,-450.0,0.00013698,2]
[361260588,1747403432912,-450.0,0.00013698,2]
[361260589,1747403432923,-450.0,0.00013698,2]
[361260590,1747403432933,-564.90462378,0.00013698,2]
[361260591,1747403432942,-450.0,0.00013698,2]
[361260592,1747403432952,-450.0,0.00013698,2]
[361260593,1747403432962,-450.0,0.00013698,2]
[361260594,1747403432972,-865.5,0.00013698,2]
[361260595,1747403432981,-450.0,0.00013698,2]
[361260597,1747403432990,-450.0,0.00013698,2]
[361260598,1747403433000,-450.0,0.00013698,2]
[361260599,1747403433009,-450.0,0.00013698,2]
[361260600,1747403433019,-690.204031,0.00013699,2]
[361260602,1747403433029,-151.79590018,0.00013808,2]
[361260603,1747403433039,-160.0,0.00013809,2]
[361260604,1747403433049,-349.07354277,0.00013809,2]
[361261089,1747403438098,-450.0,0.00013698,2]
[361261091,1747403438108,-410.40482755,0.00013698,2]
[361261097,1747403438155,-39.59517245,0.00013698,2]
[361261099,1747403438164,-5209.89276669,0.00013809,2]
[361261510,1747403446375,-422.748628,0.00013561,2]
[361261512,1747403446387,-548.44194169,0.00013561,2]
[361261538,1747403446615,-618.24301923,0.00013561,2]
[361262924,1747403834019,-5000.0,0.00012339,2]
[361262925,1747403834040,-308.0,0.00012464,2]
[361262926,1747403985823,10000.0,8.02e-05,2]
[361262930,1747403995471,10000.0,8.02e-05,2]
[361262936,1747404006874,10000.0,8.02e-05,2]
[361262937,1747404023227,289.21,8.02e-05,2]
[361262939,1747404044167,524.91067324,0.00027397,120]
[361263058,1747404632952,-9429.8907382,0.00011497,2]
[361263060,1747404632962,-5000.0,0.00011703,14]
[361263062,1747404632972,-1200.0,0.00012059,2]
[361263064,1747404632982,-300.0,0.0001206,2]
[361263066,1747404632991,-300.0,0.0001206,2]
[361263068,1747404633000,-300.0,0.0001206,2]
[361263070,1747404633010,-300.0,0.0001206,2]
[361263072,1747404633019,-5455.00538594,0.00012062,2]
[361263075,1747404633032,-12132.20584976,0.00012062,2]
[361263077,1747404633041,-1351.117843,0.00012464,2]
[361263079,1747404633052,-5396.25383563,0.00012611,2]
[361263081,1747404633061,-1000.10001,0.00012674,2]
[361263083,1747404633070,-386.33237369,0.00012674,2]
[361263085,1747404633080,-500.0,0.00012674,2]
[361263087,1747404633089,-500.0,0.00012674,2]
[361263089,1747404633099,-500.0,0.00012674,2]
[361263091,1747404633108,-500.0,0.00012674,2]
[361263093,1747404633118,-500.0,0.00012674,2]
[361263095,1747404633127,-500.0,0.00012674,2]
[361263097,1747404633137,-254.29321122,0.00012674,2]
[361263099,1747404633146,-500.0,0.00012674,2]
[361263101,1747404633156,-500.0,0.00012674,2]
[361263102,1747404633165,-500.0,0.00012674,2]
[361263104,1747404633174,-500.0,0.00012674,2]
[361263106,1747404633184,-500.0,0.00012674,2]
[361263108,1747404633193,-500.0,0.00012674,2]
[361263109,1747404633202,-500.0,0.00012674,2]
[361263111,1747404633212,-500.0,0.00012674,2]
[361263113,1747404633221,-500.0,0.00012674,2]
[361263115,1747404633247,-50000.0,0.00012675,2]
[361263117,1747404633257,-151.0,0.00012677,2]
[361263119,1747404633267,-24900.0,0.00012677,2]
[361263120,1747404633277,-4020.65405468,0.000129,2]
[361263122,1747404633287,-291.21015491,0.00013,2]
[361263124,1747404633296,-420.0,0.00013238,2]
[361263125,1747404633306,-420.0,0.00013238,2]
[361263127,1747404633315,-300.0,0.00013238,2]
[361263129,1747404633324,-420.0,0.00013238,2]
[361263131,1747404633334,-477.16375046,0.00013254,2]
[361263133,1747404633343,-500.0,0.00013264,2]
[361263134,1747404633353,-500.0,0.00013264,2]
[361263136,1747404633365,-500.0,0.00013264,2]
[361263138,1747404633375,-500.0,0.00013264,2]
[361263139,1747404633384,-1680.0,0.00013265,2]
[361263141,1747404633394,-500.0,0.00013267,2]
[361263143,1747404633405,-4020.65405464,0.00013373,2]
[361263145,1747404633415,-1044.5634472,0.00013443,2]
[361263146,1747404633425,-151.63523759,0.0001345,2]
[361263148,1747404633435,-207.4,0.0001345,2]
[361263150,1747404633444,-15865.53068417,0.00013525,2]
[361263151,1747404633454,-151.0,0.00013525,2]
[361263153,1747404633463,-346.739799,0.00013525,2]
[361263155,1747404633472,-346.739799,0.00013525,2]
[361263156,1747404633481,-151.0,0.00013525,2]
[361263158,1747404633491,-151.0,0.00013525,2]
[361263160,1747404633500,-151.0,0.00013525,2]
[361263162,1747404633510,-151.0,0.00013525,2]
[361263163,1747404633520,-151.0,0.00013525,2]
[361263165,1747404633529,-154.768106,0.00013525,2]
[361263167,1747404633539,-170.368986,0.00013525,2]
[361263169,1747404633549,-170.368986,0.00013525,2]
[361263170,1747404633558,-151.0,0.00013525,2]
[361263172,1747404633568,-151.0,0.00013525,2]
[361263174,1747404633578,-151.0,0.00013525,2]
[361263176,1747404633588,-707.0,0.00013526,2]
[361263177,1747404633597,-2236.0,0.00013526,2]
[361263179,1747404633607,-151.0,0.00013526,2]
[361263181,1747404633616,-151.0,0.00013526,2]
[361263183,1747404633626,-398.404771,0.00013526,2]
[361263185,1747404633636,-398.404771,0.00013526,2]
[361263186,1747404633646,-1488.94163275,0.00013688,2]
[361263188,1747404633655,-400.0,0.00013698,2]
[361263190,1747404633664,-466.2,0.00013698,2]
[361263192,1747404633675,-400.0,0.00013698,2]
[361263193,1747404633685,-265.26388112,0.00013698,2]
[361263195,1747404633694,-151.0,0.00013698,2]
[361263197,1747404633703,-151.0,0.00013698,2]
[361263199,1747404633713,-450.0,0.00013698,2]
[361263200,1747404633723,-151.0,0.00013698,2]
[361263202,1747404633733,-450.0,0.00013698,2]
[361263204,1747404633743,-151.0,0.00013698,2]
[361263206,1747404633753,-1623.28,0.00013698,2]
[361263208,1747404633764,-450.0,0.00013698,2]
[361263209,1747404633773,-1466.07,0.00013698,2]
[361263211,1747404633783,-450.0,0.00013698,2]
[361263213,1747404633793,-229.46059,0.00013698,2]
[361263215,1747404633802,-398.404771,0.00013698,2]
[361263216,1747404633811,-229.46059,0.00013698,2]
[361263218,1747404633822,-398.404771,0.00013698,2]
[361263220,1747404633832,-450.0,0.00013698,2]
[361263221,1747404633841,-450.0,0.00013698,2]
[361263223,1747404633851,-450.0,0.00013698,2]
[361263225,1747404633861,-167.751858,0.00013698,2]
[361263227,1747404633871,-450.0,0.00013698,2]
[361263229,1747404633881,-829.44,0.00013698,2]
[361263230,1747404633890,-346.739799,0.00013698,2]
[361263232,1747404633900,-647.45,0.00013698,2]
[361263234,1747404633909,-346.739799,0.00013698,2]
[361263236,1747404633919,-151.0,0.00013698,2]
[361263238,1747404633928,-151.0,0.00013698,2]
[361263239,1747404633937,-151.0,0.00013698,2]
[361263241,1747404633947,-450.0,0.00013698,2]
[361263243,1747404633957,-450.0,0.00013698,2]
[361263245,1747404633966,-450.0,0.00013698,2]
[361263247,1747404633975,-450.0,0.00013698,2]
[361263248,1747404633985,-944.71,0.00013698,2]
[361263250,1747404633994,-151.0,0.00013698,2]
[361263252,1747404634003,-450.0,0.00013698,2]
[361263254,1747404634015,-450.0,0.00013698,2]
[361263256,1747404634025,-450.0,0.00013698,2]
[361263257,1747404634035,-450.0,0.00013698,2]
[361263259,1747404634044,-478.81,0.00013698,2]
[361263261,1747404634054,-450.0,0.00013698,2]
[361263263,1747404634063,-151.0,0.00013698,2]
[361263265,1747404634072,-450.0,0.00013698,2]
[361263266,1747404634082,-170.368986,0.00013698,2]
[361263268,1747404634092,-450.0,0.00013698,2]
[361263270,1747404634101,-170.368986,0.00013698,2]
[361263272,1747404634111,-450.0,0.00013698,2]
[361263274,1747404634120,-151.0,0.00013698,2]
[361263275,1747404634130,-450.0,0.00013698,2]
[361263277,1747404634139,-151.0,0.00013698,2]
[361263279,1747404634149,-450.0,0.00013698,2]
[361263281,1747404634158,-450.0,0.00013698,2]
[361263282,1747404634168,-450.0,0.00013698,2]
[361263284,1747404634178,-450.0,0.00013698,2]
[361263286,1747404634188,-450.0,0.00013698,2]
[361263288,1747404634197,-450.0,0.00013698,2]
[361263290,1747404634206,-151.0,0.00013698,2]
[361263292,1747404634215,-675.2624,0.00013699,2]
[361263293,1747404634224,-151.0,0.00013699,2]
[361263295,1747404634233,-151.0,0.00013699,2]
[361263297,1747404634242,-151.0,0.00013699,2]
[361263299,1747404634252,-152.804054,0.00013699,2]
[361263301,1747404634261,-516.989565,0.00013699,2]
[361263302,1747404634274,-516.989565,0.00013699,2]
[361263304,1747404634283,-151.378151,0.00013699,2]
[361263306,1747404634293,-478.092377,0.00013699,2]
[361263308,1747404634303,-478.092377,0.00013699,2]
[361263309,1747404634314,-151.0,0.00013699,2]
[361263311,1747404634323,-151.0,0.00013699,2]
[361263313,1747404634332,-151.0,0.00013699,2]
[361263315,1747404634342,-151.0,0.00013699,2]
[361263317,1747404634351,-170.368986,0.00013699,2]
[361263318,1747404634361,-170.368986,0.00013699,2]
[361263320,1747404634374,-151.0,0.00013699,2]
[361263322,1747404634383,-204.177568,0.00013699,2]
[361263324,1747404634393,-151.0,0.00013699,2]
[361263326,1747404634403,-160.0,0.00013805,2]
[361263328,1747404634412,-160.0,0.00013805,2]
[361263329,1747404634422,-12631.88158148,0.00013805,2]
[361263331,1747404634431,-160.0,0.00013805,2]
[361263333,1747404634441,-212.26722696,0.00013808,2]
[361263335,1747404634449,-160.0,0.00013808,2]
[361263336,1747404634459,-151.0,0.00013808,2]
[361263338,1747404634468,-151.0,0.00013808,2]
[361263340,1747404634478,-151.0,0.00013808,2]
[361263342,1747404634487,-308.763518,0.00013808,2]
[361263344,1747404634496,-151.0,0.00013808,2]
[361263346,1747404634505,-151.0,0.00013808,2]
[361263348,1747404634517,-151.0,0.00013808,2]
[361263349,1747404634527,-151.0,0.00013808,2]
[361263351,1747404634536,-151.0,0.00013808,2]
[361263353,1747404634545,-151.0,0.00013808,2]
[361263355,1747404634555,-230.948874,0.00013808,2]
[361263357,1747404634564,-516.989565,0.00013808,2]
[361263358,1747404634573,-516.989565,0.00013808,2]
[361263360,1747404634583,-151.0,0.00013808,2]
[361263362,1747404634593,-455.025104,0.00013808,2]
[361263364,1747404634602,-455.025104,0.00013808,2]
[361263365,1747404634611,-478.092377,0.00013808,2]
[361263367,1747404634620,-478.092377,0.00013808,2]
[361263369,1747404634629,-151.0,0.00013808,2]
[361263371,1747404634638,-151.0,0.00013808,2]
[361263373,1747404634647,-151.0,0.00013808,2]
[361263375,1747404634656,-229.46059,0.00013808,2]
[361263376,1747404634665,-398.404771,0.00013808,2]
[361263378,1747404634675,-151.0,0.00013808,2]
[361263380,1747404634685,-398.404771,0.00013808,2]
[361263382,1747404634695,-229.46059,0.00013808,2]
[361263384,1747404634704,-346.739799,0.00013808,2]
[361263385,1747404634713,-346.739799,0.00013808,2]
[361263387,1747404634722,-346.739799,0.00013808,2]
[361263389,1747404634732,-346.739799,0.00013808,2]
[361263391,1747404634742,-346.739799,0.00013808,2]
[361263393,1747404634751,-346.739799,0.00013808,2]
[361263394,1747404634761,-151.0,0.00013808,2]
[361263396,1747404634775,-151.0,0.00013808,2]
[361263398,1747404634784,-151.0,0.00013808,2]
[361263400,1747404634794,-151.0,0.00013808,2]
[361263402,1747404634804,-151.0,0.00013808,2]
[361263404,1747404634814,-292.018692,0.00013808,2]
[361263405,1747404634823,-151.0,0.00013808,2]
[361263407,1747404634833,-151.0,0.00013808,2]
[361263409,1747404634843,-151.0,0.00013808,2]
[361263411,1747404634853,-151.0,0.00013808,2]
[361263413,1747404634863,-170.368986,0.00013808,2]
[361263415,1747404634873,-170.368986,0.00013808,2]
[361263416,1747404634883,-170.368986,0.00013808,2]
[361263418,1747404634892,-170.368986,0.00013808,2]
[361263420,1747404634901,-151.0,0.00013808,2]
[361263422,1747404634910,-151.0,0.00013808,2]
[361263424,1747404634920,-160.0,0.00013812,2]
[361263425,1747404634929,-151.0,0.00013835,2]
[361263427,1747404634939,-155.129166,0.00013835,2]
[361263429,1747404634948,-151.0,0.00013835,2]
[361263431,1747404634957,-450.0,0.00013835,2]
[361263433,1747404634966,-151.0,0.00013835,2]
[361263435,1747404634976,-151.0,0.00013835,2]
[361263436,1747404634985,-450.0,0.00013835,2]
[361263438,1747404634994,-151.0,0.00013835,2]
[361263440,1747404635003,-151.0,0.00013835,2]
[361263442,1747404635012,-1623.28,0.00013835,2]
[361263444,1747404635023,-450.0,0.00013835,2]
[361263446,1747404635032,-1466.07,0.00013835,2]
[361263447,1747404635041,-450.0,0.00013835,2]
[361263449,1747404635050,-229.46059,0.00013835,2]
[361263451,1747404635059,-398.404771,0.00013835,2]
[361263453,1747404635068,-398.404771,0.00013835,2]
[361263455,1747404635077,-398.404771,0.00013835,2]
[361263456,1747404635086,-398.404771,0.00013835,2]
[361263458,1747404635096,-450.0,0.00013835,2]
[361263460,1747404635105,-229.46059,0.00013835,2]
[361263462,1747404635114,-376.06348322,0.00013835,2]
[361263464,1747404635124,-282.99,0.00013835,2]
[361263466,1747404635133,-450.0,0.00013835,2]
[361263480,1747404635289,-829.44,0.00013835,2]
[361263482,1747404635303,-346.739799,0.00013835,2]
[361263484,1747404635313,-647.45,0.00013835,2]
[361263486,1747404635322,-346.739799,0.00013835,2]
[361263488,1747404635331,-151.0,0.00013835,2]
[361263490,1747404635340,-151.0,0.00013835,2]
[361263492,1747404635350,-450.0,0.00013835,2]
[361263494,1747404635359,-450.0,0.00013835,2]
[361263495,1747404635371,-450.0,0.00013835,2]
[361263497,1747404635380,-450.0,0.00013835,2]
[361263499,1747404635392,-944.71,0.00013835,2]
[361263501,1747404635401,-151.0,0.00013835,2]
[361263503,1747404635410,-450.0,0.00013835,2]
[361263505,1747404635419,-294.01,0.00013835,2]
[361263506,1747404635427,-450.0,0.00013835,2]
[361263508,1747404635436,-450.0,0.00013835,2]
[361263510,1747404635445,-450.0,0.00013835,2]
[361263512,1747404635454,-450.0,0.00013835,2]
[361263514,1747404635463,-170.368986,0.00013835,2]
[361263516,1747404635472,-450.0,0.00013835,2]
[361263517,1747404635481,-450.0,0.00013835,2]
[361263519,1747404635491,-170.368986,0.00013835,2]
[361263521,1747404635500,-151.0,0.00013835,2]
[361263523,1747404635509,-450.0,0.00013835,2]
[361263525,1747404635519,-450.0,0.00013835,2]
[361263527,1747404635528,-450.0,0.00013835,2]
[361263529,1747404635537,-450.0,0.00013835,2]
[361263530,1747404635547,-450.0,0.00013835,2]
[361263532,1747404635556,-450.0,0.00013835,2]
[361263534,1747404635565,-151.0,0.00013835,2]
[361263536,1747404635575,-7256.03952418,0.00013844,2]
[361263538,1747404635584,-151.0,0.00013844,2]
[361263540,1747404635593,-4020.65405464,0.00013846,2]
[361263541,1747404635603,-274.206042,0.00013906,2]
[361263543,1747404635612,-151.0,0.00013906,2]
[361263545,1747404635621,-151.0,0.00013906,2]
[361263547,1747404635630,-151.0,0.00013906,2]
[361263549,1747404635639,-151.0,0.00013906,2]
[361263550,1747404635648,-516.989565,0.00013906,2]
[361263552,1747404635658,-516.989565,0.00013906,2]
[361263554,1747404635667,-455.025104,0.00013906,2]
[361263556,1747404635676,-455.025104,0.00013906,2]
[361263558,1747404635687,-478.092377,0.00013906,2]
[361263560,1747404635696,-478.092377,0.00013906,2]
[361263561,1747404635705,-151.0,0.00013906,2]
[361263563,1747404635715,-151.0,0.00013906,2]
[361263565,1747404635724,-151.0,0.00013906,2]
[361263567,1747404635734,-151.0,0.00013906,2]
[361263569,1747404635743,-398.404771,0.00013906,2]
[361263571,1747404635752,-398.404771,0.00013906,2]
[361263572,1747404635761,-151.0,0.00013944,2]
[361263574,1747404635771,-229.46059,0.00013944,2]
[361263576,1747404635781,-229.46059,0.00013944,2]
[361263578,1747404635790,-151.0,0.00013944,2]
[361263580,1747404635800,-151.0,0.00013944,2]
[361263582,1747404635809,-170.368986,0.00013944,2]
[361263583,1747404635818,-170.368986,0.00013944,2]
[361263585,1747404635828,-151.0,0.00013944,2]
[361263587,1747404635837,-1998.2428319,0.00013959,2]
[361263589,1747404635847,-516.989565,0.0001397,2]
[361263591,1747404635856,-516.989565,0.0001397,2]
[361263593,1747404635865,-478.092377,0.0001397,2]
[361263595,1747404635875,-478.092377,0.0001397,2]
[361263596,1747404635884,-229.46059,0.0001397,2]
[361263598,1747404635893,-229.46059,0.0001397,2]
[361263600,1747404635903,-151.0,0.00013971,2]
[361263602,1747404635912,-308.763518,0.00013971,2]
[361263604,1747404635920,-308.763518,0.00013971,2]
[361263606,1747404635929,-151.0,0.00013971,2]
[361263608,1747404635939,-151.0,0.00013971,2]
[361263609,1747404635949,-151.0,0.00013971,2]
[361263611,1747404635959,-151.0,0.00013971,2]
[361263613,1747404635968,-455.025104,0.00013971,2]
[361263615,1747404635977,-455.025104,0.00013971,2]
[361263617,1747404635987,-151.0,0.00013971,2]
[361263619,1747404635995,-151.0,0.00013971,2]
[361263620,1747404636005,-151.0,0.00013972,2]
[361263622,1747404636015,-151.0,0.00013972,2]
[361263624,1747404636025,-151.0,0.00013972,2]
[361263626,1747404636034,-217.821786,0.00013972,2]
[361263628,1747404636043,-151.0,0.00013972,2]
[361263630,1747404636052,-151.0,0.00013972,2]
[361263632,1747404636061,-151.0,0.00013972,2]
[361263633,1747404636071,-151.0,0.00013972,2]
[361263635,1747404636080,-151.0,0.00013972,2]
[361263637,1747404636089,-216.105732,0.00013972,2]
[361263639,1747404636099,-368.813268,0.00013972,2]
[361263641,1747404636107,-151.0,0.00013972,2]
[361263643,1747404636116,-151.0,0.00013972,2]
[361263644,1747404636126,-151.0,0.00013972,2]
[361263646,1747404636135,-151.0,0.00013972,2]
[361263648,1747404636145,-516.989565,0.00013972,2]
[361263650,1747404636154,-516.989565,0.00013972,2]
[361263652,1747404636163,-455.025104,0.00013972,2]
[361263654,1747404636173,-455.025104,0.00013972,2]
[361263656,1747404636182,-478.092377,0.00013972,2]
[361263657,1747404636191,-478.092377,0.00013972,2]
[361263659,1747404636201,-478.44282748,0.00013972,2]
[361263661,1747404636210,-151.0,0.00013972,2]
[361263663,1747404636220,-219.89381134,0.00013972,2]
[361263665,1747404636229,-151.0,0.00013972,2]
[361263667,1747404636238,-1623.28,0.00013972,2]
[361263669,1747404636248,-450.0,0.00013972,2]
[361263671,1747404636257,-1466.07,0.00013972,2]
[361263672,1747404636267,-450.0,0.00013972,2]
[361263674,1747404636276,-151.0,0.00013972,2]
[361263676,1747404636285,-229.46059,0.00013972,2]
[361263678,1747404636294,-151.0,0.00013972,2]
[361263680,1747404636303,-398.404771,0.00013972,2]
[361263682,1747404636313,-398.404771,0.00013972,2]
[361263684,1747404636322,-450.0,0.00013972,2]
[361263686,1747404636332,-229.46059,0.00013972,2]
[361263687,1747404636342,-450.0,0.00013972,2]
[361263689,1747404636351,-829.44,0.00013972,2]
[361263691,1747404636361,-346.739799,0.00013972,2]
[361263693,1747404636373,-346.739799,0.00013972,2]
[361263695,1747404636383,-647.45,0.00013972,2]
[361263697,1747404636392,-346.739799,0.00013972,2]
[361263699,1747404636401,-346.739799,0.00013972,2]
[361263701,1747404636412,-151.0,0.00013972,2]
[361263702,1747404636422,-415.50613095,0.00013972,2]
[361263704,1747404636431,-450.0,0.00013972,2]
[361263706,1747404636441,-450.0,0.00013972,2]
[361263708,1747404636451,-450.0,0.00013972,2]
[361263710,1747404636460,-944.71,0.00013972,2]
[361263712,1747404636470,-151.0,0.00013972,2]
[361263714,1747404636480,-450.0,0.00013972,2]
[361263716,1747404636489,-450.0,0.00013972,2]
[361263718,1747404636498,-450.0,0.00013972,2]
[361263719,1747404636508,-450.0,0.00013972,2]
[361263721,1747404636517,-450.0,0.00013972,2]
[361263723,1747404636526,-170.368986,0.00013972,2]
[361263725,1747404636536,-450.0,0.00013972,2]
[361263727,1747404636545,-450.0,0.00013972,2]
[361263729,1747404636555,-170.368986,0.00013972,2]
[361263731,1747404636564,-151.0,0.00013972,2]
[361263732,1747404636574,-450.0,0.00013972,2]
[361263734,1747404636583,-450.0,0.00013972,2]
[361263736,1747404636592,-450.0,0.00013972,2]